bitfinex-derivatives/quotes_BNBF0:USTF0_20250507
["timestamp","ask_amount","ask_price","bid_price","bid_amount"]
[1746651215732,1.28642938,598.37,597.65,4.35664402]
[1746651215936,1.28642938,598.36,597.65,4.35664402]
[1746651216239,2.30856313,598.35,597.65,4.35664402]
[1746651216441,1.28642938,598.34,597.65,4.35664402]
[1746651216633,1.02213375,598.35,597.65,4.35664402]
[1746651216837,1.02213375,598.34,597.65,4.35664402]
[1746651217133,1.02213375,598.33,597.65,4.35664402]
[1746651217439,1.02213375,598.32,597.65,4.35664402]
[1746651217940,0.29094192,598.64,597.65,4.35664402]
[1746651218141,1.28349855,598.63,597.65,4.35664402]
[1746651218341,2.30470816,598.62,597.65,4.35664402]
[1746651218642,1.28349575,598.61,597.65,4.35664402]
[1746651218841,0.33387866,599.02,597.65,4.35664402]
[1746651218842,2.30470536,598.6,597.65,4.35664402]
[1746651219037,1.28349575,598.59,597.65,4.35664402]
[1746651219241,1.28349575,598.58,597.65,4.35664402]
[1746651219442,1.28349575,598.57,597.65,4.35664402]
[1746651219742,1.28349575,598.56,597.65,4.35664402]
[1746651219940,2.30470536,598.55,597.65,4.35664402]
[1746651220143,1.28349575,598.54,597.65,4.35664402]
[1746651220336,1.28349575,598.53,597.65,4.35664402]
[1746651220539,1.28349575,598.52,597.65,4.35664402]
[1746651220737,1.28349575,598.51,597.65,4.35664402]
[1746651220941,1.28349575,598.5,597.65,4.35664402]
[1746651221140,1.28349575,598.49,597.65,4.35664402]
[1746651221339,1.28349575,598.48,597.65,4.35664402]
[1746651221637,2.30343878,598.47,597.65,4.35664402]
[1746651221842,1.28349575,598.46,597.65,4.35664402]
[1746651222038,1.28349575,598.45,597.65,4.35664402]
[1746651222241,1.28349575,598.44,597.65,4.35664402]
[1746651222444,1.28349575,598.43,597.65,4.35664402]
[1746651222643,1.28349575,598.42,597.65,4.35664402]
[1746651222842,2.30343878,598.41,597.65,4.35664402]
[1746651223038,1.28349575,598.4,597.65,4.35664402]
[1746651223239,1.28349575,598.39,597.65,4.35664402]
[1746651223442,1.28349575,598.38,597.65,4.35664402]
[1746651223639,1.01994303,598.41,597.65,4.35664402]
[1746651223841,1.01994303,598.37,597.65,4.35664402]
[1746651224345,1.01994303,598.36,597.65,4.35664402]
[1746651224745,1.01994303,598.35,597.65,4.35664402]
[1746651225145,1.01994303,598.34,597.65,4.35664402]
[1746651225641,0.29092976,598.69,597.65,4.35664402]
[1746651225947,1.27968039,598.68,597.65,4.35664402]
[1746651226147,1.27968039,598.67,597.65,4.35664402]
[1746651226348,1.27968039,598.66,597.65,4.35664402]
[1746651226647,2.29937952,598.65,597.65,4.35664402]
[1746651226943,1.27968039,598.64,597.65,4.35664402]
[1746651227142,1.27968039,598.63,597.65,4.35664402]
[1746651227448,1.27968039,598.62,597.65,4.35664402]
[1746651227641,1.27968039,598.61,597.65,4.35664402]
[1746651227945,1.27968039,598.6,597.65,4.35664402]
[1746651228143,1.27968039,598.59,597.65,4.35664402]
[1746651228348,2.29937952,598.58,597.65,4.35664402]
[1746651228648,2.29937952,598.57,597.65,4.35664402]
[1746651228843,1.27968039,598.56,597.65,4.35664402]
[1746651229048,1.27968039,598.55,597.65,4.35664402]
[1746651229348,2.29937952,598.54,597.65,4.35664402]
[1746651229549,1.27968039,598.53,597.65,4.35664402]
[1746651229845,1.27968039,598.52,597.65,4.35664402]
[1746651230048,1.27968039,598.51,597.65,4.35664402]
[1746651230250,1.27968039,598.5,597.65,4.35664402]
[1746651230449,1.27968039,598.49,597.65,4.35664402]
[1746651230649,1.27968039,598.48,597.65,4.35664402]
[1746651230846,1.27968039,598.47,597.65,4.35664402]
[1746651231042,2.29937952,598.46,597.65,4.35664402]
[1746651231248,1.27945102,598.45,597.65,4.35664402]
[1746651231450,1.27945102,598.44,597.65,4.35664402]
[1746651231749,1.01969913,598.43,597.65,4.35664402]
[1746651232450,1.01969913,598.42,597.65,4.35664402]
[1746651232745,1.01969913,598.41,597.65,4.35664402]
[1746651233250,1.01969913,598.4,597.65,4.35664402]
[1746651233646,0.29091639,598.69,597.65,4.35664402]
[1746651233851,1.27942211,598.68,597.65,4.35664402]
[1746651234051,2.30034998,598.67,597.65,4.35664402]
[1746651234251,1.27942211,598.66,597.65,4.35664402]
[1746651234455,2.30034998,598.65,597.65,4.35664402]
[1746651234655,2.30034998,598.64,597.65,4.35664402]
[1746651234956,1.27942211,598.63,597.65,4.35664402]
[1746651235153,1.27942211,598.62,597.65,4.35664402]
[1746651235349,1.27942211,598.61,597.65,4.35664402]
[1746651235548,1.27942211,598.6,597.65,4.35664402]
[1746651235750,2.30034998,598.59,597.65,4.35664402]
[1746651235953,1.27942211,598.58,597.65,4.35664402]
[1746651236153,2.30034998,598.57,597.65,4.35664402]
[1746651236353,1.27942211,598.56,597.65,4.35664402]
[1746651236549,2.30034998,598.55,597.65,4.35664402]
[1746651236854,1.27942211,598.54,597.65,4.35664402]
[1746651237051,1.27942211,598.53,597.65,4.35664402]
[1746651237255,2.30034998,598.52,597.65,4.35664402]
[1746651237553,1.27942211,598.51,597.65,4.35664402]
[1746651237751,1.27942211,598.5,597.65,4.35664402]
[1746651238052,2.30034998,598.49,597.65,4.35664402]
[1746651238257,1.27942211,598.48,597.65,4.35664402]
[1746651238451,1.02092787,598.49,597.65,4.35664402]
[1746651238657,2.29897704,598.48,597.65,4.35664402]
[1746651238857,1.27804917,598.47,597.65,4.35664402]
[1746651239055,2.29897704,598.46,597.65,4.35664402]
[1746651239258,1.02092787,598.46,597.65,4.35664402]
[1746651239956,0.29090544,598.69,597.65,4.35664402]
[1746651239957,1.02092787,598.45,597.65,4.35664402]
[1746651240653,1.02092787,598.44,597.65,4.35664402]
[1746651240859,1.02092787,598.43,597.65,4.35664402]
[1746651241359,1.02092787,598.42,597.65,4.35664402]
[1746651241955,1.02092787,598.41,597.65,4.35664402]
[1746651242360,1.02092787,598.4,597.65,4.35664402]
[1746651243161,1.02092787,598.39,597.65,4.35664402]
[1746651243560,0.29092368,598.69,597.65,4.35664402]
[1746651243763,1.2776881,598.68,597.65,4.35664402]
[1746651243961,1.2776881,598.67,597.65,4.35664402]
[1746651244161,2.29770466,598.66,597.65,4.35664402]
[1746651244462,2.29770466,598.65,597.65,4.35664402]
[1746651244662,1.2776881,598.64,597.65,4.35664402]
[1746651244863,1.2776881,598.63,597.65,4.35664402]
[1746651245057,2.29776291,598.62,597.65,4.35664402]
[1746651245260,1.27774635,598.61,597.65,4.35664402]
[1746651245460,2.29776291,598.6,597.65,4.35664402]
[1746651245664,1.27774635,598.59,597.65,4.35664402]
[1746651245864,1.27774635,598.58,597.65,4.35664402]
[1746651246070,2.29776291,598.57,597.65,4.35664402]
[1746651246365,1.27774635,598.56,597.65,4.35664402]
[1746651246565,1.27774635,598.55,597.65,4.35664402]
[1746651246762,2.29776291,598.54,597.65,4.35664402]
[1746651246967,1.27774635,598.53,597.65,4.35664402]
[1746651247168,2.29776291,598.52,597.65,4.35664402]
[1746651247365,1.27774635,598.51,597.65,4.35664402]
[1746651247567,1.27920728,598.5,597.65,4.35664402]
[1746651247863,1.02001656,598.52,597.65,4.35664402]
[1746651247864,2.29922384,598.49,597.65,4.35664402]
[1746651248069,1.27920728,598.48,597.65,4.35664402]
[1746651248272,2.29922384,598.47,597.65,4.35664402]
[1746651248470,1.27920728,598.46,597.65,4.35664402]
[1746651248670,1.27920728,598.45,597.65,4.35664402]
[1746651248870,2.29922384,598.44,597.65,4.35664402]
[1746651249071,2.29922384,598.43,597.65,4.35664402]
[1746651249267,1.27920728,598.42,597.65,4.35664402]
[1746651249470,1.27920728,598.41,597.65,4.35664402]
[1746651249667,1.27970348,598.4,597.65,4.35664402]
[1746651249866,1.27970348,598.39,597.65,4.35664402]
[1746651250068,1.02001656,598.41,597.65,4.35664402]
[1746651250268,1.279672,598.4,597.65,4.35664402]
[1746651250468,2.29968856,598.39,597.65,4.35664402]
[1746651250671,1.02001656,598.39,597.65,4.35664402]
[1746651250874,1.02001656,598.38,597.65,4.35664402]
[1746651251475,1.02001656,598.37,597.65,4.35664402]
[1746651251873,1.02001656,598.36,597.65,4.35664402]
[1746651252475,1.02001656,598.35,597.65,4.35664402]
[1746651253176,1.02001656,598.34,597.65,4.35664402]
[1746651253672,1.02001656,598.33,597.65,4.35664402]
[1746651254177,0.29092976,598.68,597.65,4.35664402]
[1746651254372,1.2812795,598.67,597.65,4.35664402]
[1746651254577,2.30287168,598.66,597.65,4.35664402]
[1746651254779,1.2812795,598.65,597.65,4.35664402]
[1746651254977,2.30287168,598.64,597.65,4.35664402]
[1746651255178,1.2812795,598.63,597.65,4.35664402]
[1746651255373,1.2812795,598.62,597.65,4.35664402]
[1746651255572,1.2812795,598.61,597.65,4.35664402]
[1746651255778,1.02159218,598.64,597.65,4.35664402]
[1746651255779,2.30287168,598.6,597.65,4.35664402]
[1746651255976,1.2812795,598.59,597.65,4.35664402]
[1746651256177,1.2812795,598.58,597.65,4.35664402]
[1746651256374,1.2812795,598.57,597.65,4.35664402]
[1746651256577,1.2812795,598.56,597.65,4.35664402]
[1746651256778,1.28159274,598.55,597.65,4.35664402]
[1746651256975,1.28159274,598.54,597.65,4.35664402]
[1746651257175,1.28159274,598.53,597.65,4.35664402]
[1746651257375,1.28159274,598.52,597.65,4.35664402]
[1746651257579,1.28159274,598.51,597.65,4.35664402]
[1746651257779,1.28159274,598.5,597.65,4.35664402]
[1746651257979,2.30318492,598.49,597.65,4.35664402]
[1746651258183,1.28159274,598.48,597.65,4.35664402]
[1746651258383,1.28159274,598.47,597.65,4.35664402]
[1746651258576,1.02159218,598.46,597.65,4.35664402]
[1746651258882,1.28152312,598.45,597.65,4.35664402]
[1746651259082,1.28152312,598.44,597.65,4.35664402]
[1746651259282,2.30305859,598.43,597.65,4.35664402]
[1746651259478,1.28148011,598.42,597.65,4.35664402]
[1746651259677,2.30307229,598.41,597.65,4.35664402]
[1746651259880,1.28148011,598.4,597.65,4.35664402]
[1746651260183,2.30307229,598.39,597.65,4.35664402]
[1746651260382,1.28148011,598.38,597.65,4.35664402]
[1746651260585,1.02159218,598.39,597.65,4.35664402]
[1746651260883,1.02159218,598.37,597.65,4.35664402]
[1746651261284,1.02159218,598.36,597.65,4.35664402]
[1746651262082,1.02159218,598.35,597.65,4.35664402]
[1746651262582,1.02159218,598.34,597.65,4.35664402]
[1746651263184,1.02159218,598.33,597.65,4.35664402]
[1746651263883,0.33387866,599.02,597.65,4.35664402]
[1746651264085,1.58837242,599.01,597.65,4.35664402]
[1746651264279,2.61004523,599.0,597.65,4.35664402]
[1746651264479,1.28140188,598.99,597.65,4.35664402]
[1746651264678,2.61004523,598.98,597.65,4.35664402]
[1746651264884,1.58836514,598.97,597.65,4.35664402]
[1746651265078,2.30308197,598.96,597.65,4.35664402]
[1746651265279,1.02168009,598.96,597.65,4.35664402]
[1746651265584,1.58840838,598.95,597.65,4.35664402]
[1746651265984,0.30696326,598.94,597.65,4.35664402]
[1746651266187,1.28141756,598.93,597.65,4.35664402]
[1746651266380,1.58839513,598.92,597.65,4.35664402]
[1746651266584,0.30696326,598.92,597.65,4.35664402]
[1746651266786,1.58839049,598.91,597.65,4.35664402]
[1746651266979,1.58839049,598.9,597.65,4.35664402]
[1746651267181,1.28142723,598.89,597.65,4.35664402]
[1746651267383,1.28194752,598.88,597.65,4.35664402]
[1746651267584,1.28194752,598.87,597.65,4.35664402]
[1746651267884,1.28194752,598.86,597.65,4.35664402]
[1746651268183,2.30362761,598.85,597.65,4.35664402]
[1746651268379,2.30362761,598.84,597.65,4.35664402]
[1746651268581,1.28194752,598.83,597.65,4.35664402]
[1746651268784,1.28194752,598.82,597.65,4.35664402]
[1746651268981,1.28194752,598.81,597.65,4.35664402]
[1746651269183,2.30362761,598.8,597.65,4.35664402]
[1746651269385,1.28194752,598.79,597.65,4.35664402]
[1746651269586,2.30362761,598.78,597.65,4.35664402]
[1746651269783,1.28194752,598.77,597.65,4.35664402]
[1746651269984,1.28194752,598.76,597.65,4.35664402]
[1746651270187,1.28194752,598.75,597.65,4.35664402]
[1746651270482,1.28194752,598.74,597.65,4.35664402]
[1746651270783,2.30362761,598.73,597.65,4.35664402]
[1746651270988,1.28194752,598.72,597.65,4.35664402]
[1746651271185,1.28194752,598.71,597.65,4.35664402]
[1746651271490,2.30362761,598.7,597.65,4.35664402]
[1746651271787,2.30362761,598.69,597.65,4.35664402]
[1746651271989,1.28194752,598.68,597.65,4.35664402]
[1746651272189,0.29088842,598.76,597.65,4.35664402]
[1746651272190,2.30362761,598.67,597.65,4.35664402]
[1746651272392,1.28194752,598.66,597.65,4.35664402]
[1746651272591,2.30362761,598.65,597.65,4.35664402]
[1746651272792,1.28194752,598.64,597.65,4.35664402]
[1746651272991,2.30362761,598.63,597.65,4.35664402]
[1746651273191,1.28194752,598.62,597.65,4.35664402]
[1746651273391,1.28194752,598.61,597.65,4.35664402]
[1746651273599,2.30362761,598.6,597.65,4.35664402]
[1746651273891,1.28194752,598.59,597.65,4.35664402]
[1746651274092,1.28194752,598.58,597.65,4.35664402]
[1746651274292,2.30362761,598.57,597.65,4.35664402]
[1746651274587,1.2797121,598.56,597.65,4.35664402]
[1746651274791,2.30139219,598.55,597.65,4.35664402]
[1746651274991,1.2797121,598.54,597.65,4.35664402]
[1746651275191,1.2797121,598.53,597.65,4.35664402]
[1746651275393,1.2797121,598.52,597.65,4.35664402]
[1746651275690,1.2797121,598.51,597.65,4.35664402]
[1746651275892,1.2797121,598.5,597.65,4.35664402]
[1746651276090,1.2797121,598.49,597.65,4.35664402]
[1746651276392,2.30110489,598.48,597.65,4.35664402]
[1746651276587,1.2794248,598.47,597.65,4.35664402]
[1746651276792,2.30110489,598.46,597.65,4.35664402]
[1746651276989,1.2794248,598.45,597.65,4.35664402]
[1746651277188,1.2794248,598.44,597.65,4.35664402]
[1746651277388,1.2794248,598.43,597.65,4.35664402]
[1746651277593,1.2794248,598.42,597.65,4.35664402]
[1746651277893,1.2794248,598.41,597.65,4.35664402]
[1746651278089,0.29090301,598.65,597.65,4.35664402]
[1746651278090,2.30110489,598.4,597.65,4.35664402]
[1746651278295,1.2794248,598.39,597.65,4.35664402]
[1746651278489,2.30110489,598.38,597.65,4.35664402]
[1746651278790,1.2794248,598.37,597.65,4.35664402]
[1746651278991,2.30110489,598.36,597.65,4.35664402]
[1746651279190,1.2794248,598.35,597.65,4.35664402]
[1746651279397,1.02168009,598.34,597.65,4.35664402]
[1746651279899,1.02168009,598.33,597.65,4.35664402]
[1746651280401,1.02168009,598.32,597.65,4.35664402]
[1746651280800,0.29093706,598.65,597.65,4.35664402]
[1746651280997,1.2810689,598.64,597.65,4.35664402]
[1746651281194,1.2810689,598.63,597.65,4.35664402]
[1746651281395,1.2810689,598.62,597.65,4.35664402]
[1746651281595,2.30264622,598.61,597.65,4.35664402]
[1746651281798,1.2810689,598.6,597.65,4.35664402]
[1746651282000,1.2810689,598.59,597.65,4.35664402]
[1746651282201,2.30264622,598.58,597.65,4.35664402]
[1746651282402,2.30264622,598.57,597.65,4.35664402]
[1746651282599,1.2810689,598.56,597.65,4.35664402]
[1746651282798,1.2810689,598.55,597.65,4.35664402]
[1746651283103,2.30264622,598.54,597.65,4.35664402]
[1746651283301,1.2810689,598.53,597.65,4.35664402]
[1746651283501,2.30264622,598.52,597.65,4.35664402]
[1746651283701,1.2810689,598.51,597.65,4.35664402]
[1746651283901,1.2810689,598.5,597.65,4.35664402]
[1746651284102,1.2810689,598.49,597.65,4.35664402]
[1746651284299,2.30264622,598.48,597.65,4.35664402]
[1746651284605,1.2810689,598.47,597.65,4.35664402]
[1746651284899,1.2810689,598.46,597.65,4.35664402]
[1746651285100,1.2810689,598.45,597.65,4.35664402]
[1746651285301,1.2810689,598.44,597.65,4.35664402]
[1746651285601,2.30338241,598.43,597.65,4.35664402]
[1746651285800,1.28180509,598.42,597.65,4.35664402]
[1746651286002,1.28180509,598.41,597.65,4.35664402]
[1746651286302,2.30338241,598.4,597.65,4.35664402]
[1746651286505,2.30338241,598.39,597.65,4.35664402]
[1746651286707,1.02157732,598.39,597.65,4.35664402]
[1746651287007,1.02157732,598.38,597.65,4.35664402]
[1746651287305,1.02157732,598.37,597.65,4.35664402]
[1746651287502,1.02157732,598.36,597.65,4.35664402]
[1746651288006,0.33387866,599.02,597.65,4.35664402]
[1746651288206,1.28205499,599.01,597.65,4.35664402]
[1746651288502,0.29093828,598.65,597.65,4.35664402]
[1746651288702,1.28205499,598.64,597.65,4.35664402]
[1746651288902,2.30398606,598.63,597.65,4.35664402]
[1746651289100,1.28205499,598.62,597.65,4.35664402]
[1746651289304,1.28205499,598.61,597.65,4.35664402]
[1746651289506,1.28205499,598.6,597.65,4.35664402]
[1746651289708,2.30398606,598.59,597.65,4.35664402]
[1746651289907,2.30398606,598.58,597.65,4.35664402]
[1746651290107,1.28205499,598.57,597.65,4.35664402]
[1746651290307,1.28205499,598.56,597.65,4.35664402]
[1746651290508,2.30398606,598.55,597.65,4.35664402]
[1746651290807,1.28205499,598.54,597.65,4.35664402]
[1746651291007,1.28205499,598.53,597.65,4.35664402]
[1746651291208,1.28205956,598.52,597.65,4.35664402]
[1746651291509,1.28205956,598.51,597.65,5.41995461]
[1746651291709,1.28205956,598.5,597.65,5.41995461]
[1746651291908,1.28205956,598.49,597.65,5.41995461]
[1746651292107,2.30399063,598.48,597.65,5.41995461]
[1746651292310,1.28205956,598.47,597.65,5.41995461]
[1746651292502,1.28205956,598.46,597.65,5.41995461]
[1746651292807,2.30399063,598.45,597.65,5.41995461]
[1746651293103,1.28205956,598.44,597.65,5.41995461]
[1746651293307,1.28205956,598.43,597.65,5.41995461]
[1746651293508,2.30399063,598.42,597.65,5.41995461]
[1746651293708,2.30399063,598.41,597.65,5.41995461]
[1746651293909,1.28205956,598.4,597.65,4.35664402]
[1746651294209,2.30399063,598.39,597.65,4.35664402]
[1746651294508,1.28205956,598.38,597.65,4.35664402]
[1746651294709,1.28205956,598.37,597.65,4.35664402]
[1746651295008,1.28205956,598.36,597.65,4.35664402]
[1746651295205,1.02193107,598.35,597.65,4.35664402]
[1746651295710,1.02193107,598.34,597.65,4.35664402]
[1746651296509,1.02193107,598.33,597.65,4.35664402]
[1746651297111,1.02193107,598.32,597.65,4.35664402]
[1746651297614,0.29094192,598.65,597.65,4.35664402]
[1746651297912,1.28031162,598.64,597.65,4.35664402]
[1746651298112,1.28031162,598.63,597.65,4.35664402]
[1746651298309,2.30153631,598.62,597.65,4.35664402]
[1746651298514,1.2801308,598.61,597.65,4.35664402]
[1746651298709,1.2801308,598.6,597.65,4.35664402]
[1746651298908,1.2801308,598.59,597.65,4.35664402]
[1746651299112,2.30135549,598.58,597.65,4.35664402]
[1746651299313,1.2801308,598.57,597.65,4.35664402]
[1746651299513,1.2801308,598.56,597.65,5.41995461]
[1746651299713,2.30135549,598.55,597.65,5.41995461]
[1746651299910,1.2801308,598.54,597.65,5.41995461]
[1746651300114,2.30135549,598.53,597.65,5.41995461]
[1746651300314,1.2801308,598.52,597.65,5.41995461]
[1746651300517,2.30123604,598.51,597.65,5.41995461]
[1746651300709,1.28001135,598.5,597.65,5.41995461]
[1746651300912,1.28001135,598.49,597.65,5.41995461]
[1746651301109,2.30123604,598.48,597.65,5.41995461]
[1746651301314,1.28001135,598.47,597.65,5.41995461]
[1746651301514,2.30123604,598.46,597.65,5.41995461]
[1746651301715,1.28001135,598.45,597.65,4.35664402]
[1746651301915,1.28027872,598.44,597.65,4.35664402]
[1746651302115,2.30150341,598.43,597.65,4.35664402]
[1746651302308,1.28027872,598.42,597.65,4.35664402]
[1746651302509,1.28027872,598.41,597.65,4.35664402]
[1746651302713,1.02122469,598.4,597.65,4.35664402]
[1746651303517,1.02122469,598.39,597.65,4.35664402]
[1746651303916,1.02122469,598.38,597.65,4.35664402]
[1746651304217,1.02122469,598.37,597.65,4.35664402]
[1746651304816,1.02122469,598.36,597.65,4.35664402]
[1746651305218,0.29092611,598.68,597.65,4.35664402]
[1746651305517,1.28199382,598.67,597.65,4.35664402]
[1746651305718,1.28199382,598.66,597.65,4.35664402]
[1746651305916,2.30371168,598.65,597.65,4.35664402]
[1746651306117,1.28199382,598.64,597.65,4.35664402]
[1746651306317,1.28199382,598.63,597.65,4.35664402]
[1746651306616,1.28199382,598.62,597.65,4.35664402]
[1746651306816,1.28199382,598.61,597.65,4.35664402]
[1746651307017,2.30371168,598.6,597.65,4.35664402]
[1746651307219,1.28199382,598.59,597.65,4.35664402]
[1746651307416,2.30363747,598.58,597.65,4.35664402]
[1746651307613,1.28191961,598.57,597.65,4.35664402]
[1746651307813,2.30363747,598.56,597.65,4.35664402]
[1746651308012,1.28191961,598.55,597.65,4.35664402]
[1746651308212,1.28191961,598.54,597.65,4.35664402]
[1746651308513,2.30363747,598.53,597.65,4.35664402]
[1746651308714,2.30363747,598.52,597.65,4.35664402]
[1746651308913,1.28191961,598.51,597.65,4.35664402]
[1746651309120,2.30363747,598.5,597.65,4.35664402]
[1746651309314,1.28191961,598.49,597.65,4.35664402]
[1746651309515,1.28191961,598.48,597.65,4.35664402]
[1746651309819,2.30363747,598.47,597.65,4.35664402]
[1746651310016,1.28191961,598.46,597.65,4.35664402]
[1746651310221,1.02171786,598.45,597.65,4.35664402]
[1746651310622,1.02171786,598.44,597.65,4.35664402]
[1746651311123,1.02171786,598.43,597.65,4.35664402]
[1746651311623,1.02171786,598.42,597.65,4.35664402]
[1746651312127,0.33387866,599.02,597.65,4.35664402]
[1746651312324,0.29090423,598.76,597.65,4.35664402]
[1746651312519,2.30158248,598.75,597.65,4.35664402]
[1746651312724,1.28070497,598.74,597.65,4.35664402]
[1746651312925,1.28070497,598.73,597.65,4.35664402]
[1746651313123,2.30158248,598.72,597.65,4.35664402]
[1746651313320,1.28070497,598.71,597.65,4.35664402]
[1746651313519,1.28070497,598.7,597.65,4.35664402]
[1746651313725,2.30158248,598.69,597.65,4.35664402]
[1746651313925,2.30158248,598.68,597.65,4.35664402]
[1746651314125,1.28070497,598.67,597.65,4.35664402]
[1746651314322,2.30158248,598.66,597.65,4.35664402]
[1746651314526,1.28070497,598.65,597.65,4.35664402]
[1746651314720,1.2801787,598.64,597.65,4.35664402]
[1746651314924,2.30105621,598.63,597.65,4.35664402]
[1746651315121,1.2801787,598.62,597.65,4.35664402]
[1746651315322,1.2801787,598.61,597.65,4.35664402]
[1746651315527,1.2801787,598.6,597.65,4.35664402]
[1746651315721,1.2801787,598.59,597.65,4.35664402]
[1746651315922,1.2801787,598.58,597.65,4.35664402]
[1746651316127,2.30105621,598.57,597.65,4.35664402]
[1746651316423,2.30105621,598.56,597.65,4.35664402]
[1746651316625,1.2801787,598.55,597.65,4.35664402]
[1746651316827,1.2801787,598.54,597.65,4.35664402]
[1746651317026,2.30105621,598.53,597.65,4.35664402]
[1746651317222,1.2801787,598.52,597.65,4.35664402]
[1746651317426,2.30105621,598.51,597.65,4.35664402]
[1746651317625,2.30105621,598.5,597.65,4.35664402]
[1746651317823,1.02087751,598.5,597.65,4.35664402]
[1746651318025,1.27884451,598.49,597.65,4.35664402]
[1746651318225,1.02087751,598.49,597.65,4.35664402]
[1746651318727,1.02087751,598.48,597.65,4.35664402]
[1746651319229,1.02087751,598.47,597.65,4.35664402]
[1746651319634,1.02087751,598.46,597.65,4.35664402]
[1746651320134,0.2908945,598.76,597.65,4.35664402]
[1746651320335,1.27855092,598.75,597.65,4.35664402]
[1746651320635,2.29848484,598.74,597.65,4.35664402]
[1746651320838,2.29848484,598.73,597.65,4.35664402]
[1746651321030,1.27855092,598.72,597.65,4.35664402]
[1746651321335,2.29848484,598.71,597.65,4.35664402]
[1746651321535,1.27855092,598.7,597.65,4.35664402]
[1746651321735,2.29848484,598.69,597.65,4.35664402]
[1746651321931,1.27855092,598.68,597.65,4.35664402]
[1746651322135,1.27855092,598.67,597.65,4.35664402]
[1746651322334,2.29848484,598.66,597.65,4.35664402]
[1746651322538,1.27855092,598.65,597.65,4.35664402]
[1746651322735,1.27855092,598.64,597.65,4.35664402]
[1746651322931,2.29848484,598.63,597.65,4.35664402]
[1746651323236,1.27855092,598.62,597.65,4.35664402]
[1746651323435,1.27855092,598.61,597.65,4.35664402]
[1746651323632,2.29848484,598.6,597.65,4.35664402]
[1746651323832,2.29848484,598.59,597.65,4.35664402]
[1746651324035,1.27855092,598.58,597.65,4.35664402]
[1746651324232,1.27855092,598.57,597.65,4.35664402]
[1746651324435,2.29848484,598.56,597.65,4.35664402]
[1746651324633,1.27855092,598.55,597.65,4.35664402]
[1746651324838,2.29848484,598.54,597.65,4.35664402]
[1746651325035,1.27855092,598.53,597.65,4.35664402]
[1746651325236,2.29848484,598.52,597.65,4.35664402]
[1746651325433,1.27855092,598.51,597.65,4.35664402]
[1746651325737,2.29848484,598.5,597.65,4.35664402]
[1746651326037,1.27855092,598.49,597.65,4.35664402]
[1746651326232,1.01993392,598.48,597.65,4.35664402]
[1746651326539,1.01993392,598.47,597.65,4.35664402]
[1746651327735,1.00545775,598.47,597.65,4.35664402]
[1746651329142,0.29087383,598.86,597.65,4.35664402]
[1746651329441,1.27916,598.85,597.65,4.35664402]
[1746651329641,1.27916,598.84,597.65,4.35664402]
[1746651329839,1.27915167,598.83,597.65,4.35664402]
[1746651330038,1.27915167,598.82,597.65,4.35664402]
[1746651330242,0.33387866,599.02,597.65,4.35664402]
[1746651330243,1.27915167,598.81,597.65,4.35664402]
[1746651330436,1.27915167,598.8,597.65,4.35664402]
[1746651330638,1.27915167,598.79,597.65,4.35664402]
[1746651330838,1.27915167,598.78,597.65,4.35664402]
[1746651331039,1.27915167,598.77,597.65,4.35664402]
[1746651331242,1.27915167,598.76,597.65,4.35664402]
[1746651331445,1.27915167,598.75,597.65,4.35664402]
[1746651331645,1.27915167,598.74,597.65,4.35664402]
[1746651331843,1.27915167,598.73,597.65,4.35664402]
[1746651332146,1.27915167,598.72,597.65,4.35664402]
[1746651332447,1.27915167,598.71,597.65,4.35664402]
[1746651332645,1.27915167,598.7,597.65,4.35664402]
[1746651332845,1.27915167,598.69,597.65,4.35664402]
[1746651333041,1.27915167,598.68,597.65,4.35664402]
[1746651333242,1.27915167,598.67,597.65,4.35664402]
[1746651333447,0.33387866,599.02,597.65,4.35664402]
[1746651333448,1.27915167,598.66,597.65,4.35664402]
[1746651333643,1.27915167,598.65,597.65,4.35664402]
[1746651333845,1.27915167,598.64,597.65,4.35664402]
[1746651334045,1.27915167,598.63,597.65,4.35664402]
[1746651334246,1.27915167,598.62,597.65,4.35664402]
[1746651334548,1.27915167,598.61,597.65,4.35664402]
[1746651334750,1.27915167,598.6,597.65,4.35664402]
[1746651335049,1.27915167,598.59,597.65,4.35664402]
[1746651335248,1.27817727,598.58,597.65,4.35664402]
[1746651335449,1.27817727,598.57,597.65,4.35664402]
[1746651335650,0.29085317,598.86,597.65,4.35664402]
[1746651335843,1.27811842,598.85,597.65,4.35664402]
[1746651336048,1.27811842,598.84,597.65,4.35664402]
[1746651336351,1.27811842,598.83,597.65,4.35664402]
[1746651336544,1.27811842,598.82,597.65,4.35664402]
[1746651336747,1.27811842,598.81,597.65,4.35664402]
[1746651336948,1.27811842,598.8,597.65,4.35664402]
[1746651337145,1.27812438,598.79,597.65,4.35664402]
[1746651337345,1.27812438,598.78,597.65,4.35664402]
[1746651337547,1.27812438,598.77,597.65,4.35664402]
[1746651337751,1.27812438,598.76,597.65,4.35664402]
[1746651338051,1.27812438,598.75,597.65,4.35664402]
[1746651338350,1.27812438,598.74,597.65,4.35664402]
[1746651338551,1.27812438,598.73,597.65,4.35664402]
[1746651338753,1.27812438,598.72,597.65,4.35664402]
[1746651338949,1.27812438,598.71,597.65,4.35664402]
[1746651339154,1.27812438,598.7,597.65,4.35664402]
[1746651339350,1.27812438,598.69,597.65,4.35664402]